bitfinex-derivatives/quotes_BTCF0:USTF0_20210102
["timestamp","ask_amount","ask_price","bid_price","bid_amount"]
[1609593419948,0.01973687,30771.0,30770.0,0.18043158]
[1609593420548,0.18043158,30772.0,30770.0,0.22064699]
[1609593421145,0.18043158,30772.0,30771.0,0.04021529]
[1609593425555,3.88292142,30770.0,30762.0,0.02]
[1609593425754,3.88292142,30770.0,30763.0,0.04021724]
[1609593425954,3.88292142,30770.0,30769.0,0.18043158]
[1609593426654,3.88292142,30770.0,30769.0,0.22064584]
[1609593427054,3.88292142,30770.0,30769.0,1.22064584]
[1609593427654,3.88292142,30770.0,30769.0,0.22064584]
[1609593427854,3.88292142,30770.0,30769.0,1.22064584]
[1609593428255,3.88292142,30770.0,30769.0,1.30019903]
[1609593429054,3.88292142,30770.0,30769.0,0.30019903]
[1609593429255,3.88292142,30770.0,30769.0,0.22064584]
[1609593429955,4.063353,30770.0,30769.0,0.22064584]
[1609593431159,3.88292142,30770.0,30769.0,0.22064584]
[1609593433962,3.88292142,30770.0,30769.0,1.22064584]
[1609593434363,3.88292142,30770.0,30769.0,1.30019995]
[1609593434863,3.88292142,30770.0,30769.0,2.30019995]
[1609593435965,3.88292142,30770.0,30769.0,1.30019995]
[1609593437066,3.88292142,30770.0,30769.0,0.30019995]
[1609593437567,3.88292142,30770.0,30769.0,0.22064584]
[1609593437968,3.88292142,30770.0,30769.0,1.22064584]
[1609593438368,3.88292142,30770.0,30769.0,1.30019933]
[1609593439569,3.87292142,30770.0,30769.0,1.30019933]
[1609593440072,3.87292142,30770.0,30769.0,0.30019933]
[1609593440470,3.87292142,30770.0,30769.0,0.22064584]
[1609593442473,3.87292142,30770.0,30749.0,1.83923382]
[1609593442670,3.87292142,30770.0,30750.0,0.07955507]
[1609593442871,3.87292142,30770.0,30759.0,0.04021335]
[1609593444071,1.18043158,30760.0,30752.0,0.18043158]
[1609593444271,1.32517158,30760.0,30752.0,0.18043158]
[1609593444472,1.32517158,30760.0,30743.0,0.61269337]
[1609593444473,1.32517158,30760.0,30743.0,0.46923158]
[1609593444673,1.32517158,30760.0,30743.0,0.1771]
[1609593445072,1.32517158,30760.0,30744.0,0.04022853]
[1609593445273,1.32517158,30760.0,30744.0,0.21732853]
[1609593445573,1.32517158,30760.0,30745.0,0.04023094]
[1609593445974,1.0,30750.0,30745.0,0.04023094]
[1609593446174,0.18043158,30746.0,30745.0,0.04023094]
[1609593446375,0.30943158,30746.0,30745.0,0.04023094]
[1609593447976,0.30943158,30746.0,30745.0,1.04023094]
[1609593448175,0.30943158,30746.0,30745.0,1.22066252]
[1609593448475,0.129,30746.0,30745.0,1.22066252]
[1609593449277,0.129,30746.0,30745.0,1.22066174]
[1609593449878,0.12701689,30746.0,30745.0,1.22066174]
[1609593451276,0.18043158,30752.0,30745.0,1.22066174]
[1609593451677,0.18043158,30752.0,30746.0,0.04022855]
[1609593452079,0.18043158,30752.0,30751.0,1.18043158]
[1609593452280,0.18043158,30752.0,30751.0,1.18086557]
[1609593452483,0.18043158,30752.0,30751.0,1.22065623]
[1609593452782,0.18043158,30752.0,30751.0,1.20065623]
[1609593453082,0.18043158,30752.0,30751.0,1.22065623]
[1609593453482,0.18043158,30752.0,30751.0,1.20075623]
[1609593455384,0.18043158,30752.0,30751.0,0.20075623]
[1609593457187,0.33861158,30752.0,30751.0,0.20075623]
[1609593458688,3.71238984,30750.0,30739.0,0.07957281]
[1609593459190,3.71238984,30750.0,30739.0,0.11979583]
[1609593459693,3.71238984,30750.0,30739.0,0.00043398]
[1609593459889,3.71238984,30750.0,30738.0,0.11980171]
[1609593460091,3.71238984,30750.0,30740.0,0.04022342]
[1609593460290,3.71238984,30750.0,30747.0,0.18043158]
[1609593460891,3.71040676,30750.0,30748.0,0.04022345]
[1609593461390,3.71040676,30750.0,30749.0,1.0]
[1609593461991,3.71040676,30750.0,30749.0,1.0402231]
[1609593462191,3.89083834,30750.0,30749.0,1.0402231]
[1609593464191,3.89083834,30750.0,30749.0,1.22065468]
[1609593466899,3.71040676,30750.0,30749.0,2.22065468]
[1609593467501,3.71040676,30750.0,30749.0,7.22065468]
[1609593468400,3.71040676,30750.0,30749.0,7.30020966]
[1609593469501,3.71040676,30750.0,30749.0,1.30020966]
[1609593477515,3.31417423,30750.0,30749.0,13.31537508]
[1609593477715,3.31417423,30750.0,30749.0,13.1349435]
[1609593477914,3.31417423,30750.0,30749.0,13.2397935]
[1609593478315,3.31417423,30750.0,30749.0,13.42022508]
[1609593478917,2.71981219,30750.0,30749.0,15.77250233]
[1609593479518,2.71981219,30750.0,30749.0,9.77250233]
[1609593479918,2.4226345,30750.0,30749.0,9.77250233]
[1609593481720,2.4226345,30750.0,30749.0,9.891751]
[1609593482621,0.10485,30790.0,30749.0,9.891751]
[1609593482921,0.18043158,30794.0,30758.0,0.356]
[1609593483121,0.18043158,30794.0,30759.0,1.0]
[1609593483321,0.18043158,30794.0,30760.0,0.11967546]
[1609593483621,0.18043158,30794.0,30761.0,1.0]
[1609593483823,0.18043158,30794.0,30762.0,0.11967622]
[1609593484021,0.18043158,30794.0,30764.0,0.1771]
[1609593484221,0.18043158,30794.0,30765.0,1.0]
[1609593484422,0.01976479,30804.0,30792.0,0.18043158]
[1609593485021,0.01976479,30804.0,30793.0,0.0004335]
[1609593485222,0.01976479,30804.0,30793.0,1.0004335]
[1609593485624,0.01976479,30804.0,30793.0,1.5642335]
[1609593486023,0.01976479,30804.0,30794.0,0.00043346]
[1609593486223,0.01976479,30804.0,30794.0,0.04017224]
[1609593486429,0.01976479,30804.0,30803.0,0.18043158]
[1609593486824,0.01976479,30804.0,30803.0,0.180865]
[1609593487425,0.01976479,30804.0,30803.0,1.180865]
[1609593487826,0.01975711,30807.0,30803.0,1.180865]
[1609593488226,0.01975711,30807.0,30804.0,1.0004334]
[1609593488625,0.5667975,30808.0,30805.0,0.0004334]
[1609593489427,0.70414473,30824.0,30805.0,0.0004334]
[1609593490328,0.70302474,30825.0,30811.0,0.18043158]
[1609593490926,0.70300473,30824.0,30812.0,0.00043337]
[1609593491326,0.84620473,30824.0,30812.0,0.00043337]
[1609593491528,0.84620473,30824.0,30823.0,1.0]
[1609593491727,0.1432,30824.0,30823.0,1.0]
[1609593492126,0.1432,30824.0,30823.0,1.00043328]
[1609593492327,0.32363158,30824.0,30823.0,1.18086486]
[1609593492528,0.32363158,30824.0,30823.0,1.30003145]
[1609593492728,0.32363158,30824.0,30823.0,1.30002329]
[1609593492929,0.32363158,30824.0,30823.0,2.30002329]
[1609593493532,0.32363158,30824.0,30823.0,1.30002329]
[1609593495131,0.1432,30824.0,30823.0,1.30002329]
[1609593495330,0.1432,30824.0,30823.0,1.99722329]
[1609593495530,0.1432,30824.0,30823.0,7.99722329]
[1609593495930,0.1432,30824.0,30823.0,8.1163534]
[1609593496330,0.88194291,30835.0,30823.0,8.1163534]
[1609593496530,0.88194291,30835.0,30823.0,7.4191534]
[1609593496731,0.88194291,30835.0,30824.0,0.23869022]
[1609593496931,0.70151133,30835.0,30825.0,6.2722]
[1609593497231,0.70151133,30835.0,30826.0,0.11955481]
[1609593497433,0.69952108,30844.0,30827.0,4.9511]
[1609593497834,0.69686847,30858.0,30828.0,0.23865646]
[1609593498034,0.69686847,30858.0,30829.0,1.0]
[1609593498435,0.69686847,30858.0,30848.0,0.18043158]
[1609593498837,0.69686847,30858.0,30849.0,0.03969906]
[1609593499038,0.69686847,30858.0,30849.0,0.04013173]
[1609593499240,0.69658645,30860.0,30849.0,0.04013173]
[1609593499437,0.69658645,30860.0,30857.0,1.0]
[1609593500039,0.69658645,30860.0,30857.0,0.21843]
[1609593500237,0.84052645,30860.0,30857.0,0.21843]
[1609593500444,0.84052645,30860.0,30831.0,6.0207]
[1609593500445,0.18043158,30858.0,30847.0,0.07940631]
[1609593501044,0.18043158,30858.0,30839.0,0.04018186]
[1609593501247,0.18043158,30858.0,30848.0,0.04018155]
[1609593501647,0.18043158,30858.0,30840.0,0.04018231]
[1609593501845,0.18043158,30858.0,30849.0,0.00047584]
[1609593502044,0.14394,30860.0,30841.0,0.04018604]
[1609593502445,5.0,30852.0,30850.0,0.00047584]
[1609593502644,5.0,30852.0,30842.0,0.03971399]
[1609593502844,5.0,30852.0,30851.0,0.00047592]
[1609593503045,5.15991,30852.0,30851.0,0.00047592]
[1609593503245,5.15991,30852.0,30843.0,0.03971454]
[1609593503445,5.15991,30852.0,30831.0,4.0663]
[1609593503649,5.15991,30852.0,30844.0,0.04018865]
[1609593503847,5.15991,30852.0,30832.0,0.1985638]
[1609593504246,5.15991,30852.0,30832.0,0.23875074]
[1609593504450,0.18043158,30833.0,30832.0,0.23875074]
[1609593504850,0.34218158,30833.0,30832.0,0.23875074]
[1609593505048,0.34218158,30833.0,30831.0,0.04018401]
[1609593507153,0.33218158,30833.0,30831.0,0.04018401]
[1609593508355,0.16175,30833.0,30831.0,0.04018401]
[1609593509255,0.15175,30833.0,30831.0,0.04018401]
[1609593509756,0.18043158,30841.0,30831.0,0.11957487]
[1609593509956,0.15991,30852.0,30832.0,1.0]
[1609593510156,0.14394,30860.0,30832.0,1.0]
[1609593510356,0.69235778,30873.0,30833.0,0.11953672]
[1609593510557,0.69235778,30873.0,30849.0,0.18043158]
[1609593510757,0.69235778,30873.0,30850.0,6.2293]
[1609593511157,0.69235778,30873.0,30851.0,0.11952058]
[1609593511358,0.69235778,30873.0,30852.0,1.0]
[1609593511859,0.69122377,30880.0,30853.0,0.04013409]
[1609593512059,0.69122377,30880.0,30853.0,1.04013409]
[1609593512459,0.69122377,30880.0,30853.0,1.0]
[1609593512659,0.69122377,30880.0,30863.0,0.18043158]
[1609593512859,0.2762,30893.0,30864.0,0.04013077]
[1609593513460,0.68993406,30899.0,30864.0,0.04013077]
[1609593513663,0.2891,30901.0,30864.0,0.04013077]
[1609593513862,0.577,30901.0,30864.0,0.04013077]
[1609593514062,0.577,30901.0,30864.0,0.11948567]
[1609593514264,1.26627014,30901.0,30864.0,0.11948567]
[1609593514464,0.18043158,30865.0,30864.0,0.04013077]
[1609593514863,0.33537158,30865.0,30863.0,0.7446]
[1609593515063,0.33537158,30865.0,30864.0,0.04012453]
[1609593516163,0.33537158,30865.0,30839.0,3.7303]
[1609593516164,0.33537158,30865.0,30844.0,0.04012988]
[1609593516366,0.33537158,30865.0,30844.0,5.67292988]
[1609593516570,0.15494,30865.0,30856.0,0.18043158]
[1609593516768,0.15494,30865.0,30845.0,0.11948034]
[1609593516968,0.15494,30865.0,30857.0,0.04013018]
[1609593517166,0.15494,30865.0,30845.0,0.11948327]
[1609593517572,0.15494,30865.0,30858.0,0.04013281]
[1609593517765,0.15494,30865.0,30846.0,0.04013331]
[1609593517966,0.15494,30865.0,30859.0,0.00045411]
[1609593518166,0.15494,30865.0,30859.0,0.04013511]
[1609593518367,0.14494,30865.0,30845.0,0.11948457]
[1609593518567,0.18043158,30846.0,30845.0,0.25978244]
[1609593518767,0.34710158,30846.0,30845.0,0.25978244]
[1609593518967,0.34710158,30846.0,30845.0,0.07935086]
[1609593519170,0.34710158,30846.0,30845.0,0.11948644]
[1609593519368,0.34710158,30846.0,30829.0,0.04013926]
[1609593519769,0.34710158,30846.0,30828.0,0.03]
[1609593519969,0.34710158,30846.0,30834.0,0.04014185]
[1609593520570,0.18043158,30835.0,30834.0,0.04014185]
[1609593520770,0.28943158,30835.0,30834.0,0.04014185]
[1609593523574,0.28943158,30835.0,30829.0,0.18043158]
[1609593523775,0.28745331,30835.0,30834.0,0.04015061]
[1609593526575,0.28745331,30835.0,30834.0,0.22058219]
[1609593526776,0.109,30835.0,30834.0,0.22058219]
[1609593526975,0.16667,30846.0,30834.0,0.22058219]
[1609593527376,2.422635,30850.0,30835.0,0.00045309]
[1609593527579,2.422635,30850.0,30835.0,0.04013748]
[1609593528580,2.422635,30850.0,30840.0,0.18043158]
[1609593528782,2.422635,30850.0,30841.0,0.04014141]
[1609593529181,2.422635,30850.0,30834.0,0.04014164]
[1609593529382,2.572875,30850.0,30842.0,0.04014062]
[1609593529583,2.572875,30850.0,30835.0,0.04014232]
[1609593529984,2.572875,30850.0,30834.0,0.04014335]
[1609593530187,2.572875,30850.0,30836.0,0.04014283]
[1609593530586,2.572875,30850.0,30840.0,0.18043158]
[1609593530795,2.552875,30850.0,30840.0,0.18043158]
[1609593531186,2.552875,30850.0,30841.0,0.04014117]
[1609593531586,2.552875,30850.0,30834.0,0.04014407]
[1609593531786,2.552875,30850.0,30842.0,0.04014522]
[1609593531989,2.552875,30850.0,30822.0,0.04222547]
[1609593532386,1.0,30843.0,30823.0,0.04015075]
[1609593532587,0.18043158,30824.0,30823.0,0.04015075]
[1609593532789,0.30400158,30824.0,30823.0,0.04015075]
[1609593534488,1.30400158,30824.0,30823.0,0.04015075]
[1609593538490,0.30400158,30824.0,30823.0,0.04015075]
[1609593541294,0.30202262,30824.0,30823.0,0.04015075]
[1609593542595,0.12357,30824.0,30823.0,0.04015075]
[1609593542794,0.17225,30824.0,30823.0,0.04015075]
[1609593543196,0.35268158,30824.0,30823.0,0.04015075]
[1609593543398,0.17225,30824.0,30823.0,0.04015075]
[1609593545197,0.35268158,30824.0,30804.0,0.16681]
[1609593545595,0.35268158,30824.0,30801.0,0.19857207]
[1609593545799,0.35268158,30824.0,30805.0,0.04016969]
[1609593545998,0.35268158,30824.0,30801.0,0.23874277]
[1609593546197,0.35268158,30824.0,30806.0,0.04016988]
[1609593546598,0.35268158,30824.0,30802.0,0.23875916]
[1609593546799,0.35268158,30824.0,30807.0,0.04017478]
[1609593546998,0.35268158,30824.0,30803.0,0.04017687]
[1609593547197,0.18043158,30804.0,30803.0,0.04017687]
[1609593547398,0.18043158,30804.0,30798.0,0.19862383]
[1609593547599,0.18043158,30804.0,30803.0,0.0401766]
[1609593547797,0.18043158,30804.0,30798.0,0.238801]
[1609593548098,0.18043158,30804.0,30803.0,0.04017708]
[1609593548301,0.12922,30809.0,30803.0,0.04017708]
[1609593548498,0.12922,30809.0,30799.0,0.04017579]
[1609593548699,0.12922,30809.0,30796.0,0.23879802]
[1609593548900,0.12922,30809.0,30800.0,0.04017502]
[1609593549099,0.18043158,30801.0,30800.0,0.04017502]
[1609593549300,0.18043158,30801.0,30797.0,0.0401755]
[1609593549499,0.18043158,30801.0,30796.0,0.07944921]
[1609593549699,0.18043158,30801.0,30798.0,0.04018366]
[1609593550001,0.18043158,30801.0,30796.0,0.11963159]
[1609593550702,0.31333158,30801.0,30796.0,0.11963159]
[1609593551304,0.18043158,30797.0,30792.0,2.17924864]
[1609593551504,0.18043158,30797.0,30792.0,2.00214864]
[1609593551905,0.18043158,30797.0,30793.0,0.11966815]
[1609593552306,0.18043158,30797.0,30793.0,0.07947771]
[1609593552504,1.12261,30794.0,30793.0,0.07947771]
[1609593552705,1.12261,30794.0,30788.0,0.11967978]
[1609593552905,1.12261,30794.0,30793.0,0.04019483]
[1609593553206,1.12261,30794.0,30789.0,0.04019655]
[1609593553606,0.02,30792.0,30788.0,0.07948508]
[1609593553806,0.02,30792.0,30790.0,0.04019677]
[1609593554017,0.02,30792.0,30788.0,0.11968247]
[1609593554415,0.02,30792.0,30768.0,1.0]
[1609593554605,0.02,30792.0,30789.0,0.04019653]
[1609593554811,0.02,30792.0,30791.0,0.04019429]
[1609593555005,0.02,30792.0,30791.0,0.03974213]
[1609593555207,0.19845093,30792.0,30790.0,0.0401965]
[1609593555406,0.01,30788.0,30781.0,0.18043158]
[1609593555605,0.01,30788.0,30782.0,0.04019734]
[1609593556707,0.01,30788.0,30774.0,0.04019965]
[1609593556909,0.01,30788.0,30783.0,0.04019926]
[1609593557108,0.01,30787.0,30783.0,0.04019926]
[1609593557307,0.18043158,30784.0,30775.0,0.0402011]
[1609593557507,0.18043158,30784.0,30771.0,0.18043158]
[1609593557508,0.18043158,30784.0,30783.0,0.04020378]
[1609593557707,0.18043158,30784.0,30783.0,0.03975151]
[1609593557910,0.18043158,30784.0,30774.0,0.04020364]
[1609593558112,0.18043158,30784.0,30783.0,0.04020385]
[1609593558309,0.18043158,30784.0,30775.0,0.04020347]
[1609593558511,0.18043158,30784.0,30771.0,0.04020407]
[1609593558711,0.01,30773.0,30771.0,0.04020407]
[1609593558911,0.01,30773.0,30770.0,0.10973]
[1609593559111,0.01,30773.0,30772.0,0.04020555]
[1609593559313,0.01,30773.0,30772.0,0.00045229]
[1609593559513,0.01,30773.0,30771.0,0.0402055]
[1609593559712,0.01,30773.0,30772.0,0.04020518]
[1609593560115,0.01,30773.0,30771.0,0.0402038]
[1609593560412,0.01,30773.0,30772.0,0.04020268]
[1609593561014,0.01,30773.0,30771.0,0.04017326]
[1609593561216,0.18043158,30772.0,30770.0,0.10973]
[1609593561814,0.18043158,30772.0,30771.0,0.04017549]
[1609593563720,0.15706,30786.0,30771.0,0.04017549]
[1609593563919,0.01,30787.0,30771.0,0.04017706]
[1609593564319,0.01,30787.0,30771.0,0.11967356]
[1609593564519,0.01,30787.0,30772.0,1.0]
[1609593564719,0.01,30787.0,30773.0,0.11963248]
[1609593564921,0.01,30787.0,30774.0,1.0]
[1609593565222,0.01,30787.0,30786.0,0.18043158]
[1609593565422,0.01,30787.0,30786.0,1.33304158]
[1609593565823,0.01,30787.0,30786.0,1.45264983]
[1609593566224,0.01,30787.0,30786.0,1.41249837]
[1609593566424,0.05166342,30750.0,30726.0,2.1396]
[1609593566624,0.01,30787.0,30749.0,0.0401529]
[1609593566823,0.00802025,30787.0,30752.0,6.09127645]
[1609593567024,0.00802025,30787.0,30753.0,1.0]
[1609593567224,0.00802025,30787.0,30786.0,0.18043158]
[1609593567625,0.00802025,30787.0,30755.0,0.5331]
[1609593567825,0.00802025,30787.0,30786.0,0.04015166]
[1609593568025,0.00802025,30787.0,30757.0,0.5304]
[1609593568225,0.00802025,30787.0,30786.0,0.0401512]
[1609593568426,0.00802025,30787.0,30786.0,0.1532712]
[1609593568625,0.00802025,30787.0,30786.0,0.11312]
[1609593568827,0.00802025,30787.0,30786.0,0.15327513]
[1609593569326,0.18043158,30789.0,30786.0,0.33370671]
[1609593569925,0.18043158,30789.0,30787.0,0.04016104]
[1609593570627,0.18043158,30789.0,30780.0,0.04016735]
[1609593570829,0.18043158,30789.0,30788.0,0.00042323]
[1609593571228,0.18043158,30789.0,30781.0,0.00042323]
[1609593571430,0.18043158,30789.0,30788.0,0.00042325]
[1609593571629,0.18043158,30789.0,30780.0,0.04017111]
[1609593571929,0.18043158,30789.0,30788.0,0.00042327]
[1609593572329,0.18043158,30789.0,30781.0,0.04017109]
[1609593572529,0.18043158,30789.0,30780.0,0.04017025]
[1609593572730,0.18043158,30789.0,30782.0,0.04016799]
[1609593573029,0.18043158,30789.0,30781.0,0.04016787]
[1609593573230,0.18043158,30789.0,30784.0,0.18043158]
[1609593573429,0.18043158,30785.0,30784.0,0.18043158]
[1609593573629,0.11248,30791.0,30784.0,0.18043158]
[1609593573831,0.11248,30791.0,30784.0,0.22059814]
[1609593574032,0.11248,30791.0,30785.0,0.04016617]
[1609593574430,0.2737,30800.0,30785.0,0.04016617]
[1609593575330,0.19845093,30792.0,30791.0,0.18043158]
[1609593575531,0.01801935,30792.0,30791.0,0.18043158]
[1609593575731,0.01801935,30792.0,30791.0,0.22059325]
[1609593577236,0.01801935,30792.0,30791.0,0.04016167]
[1609593577433,0.19845093,30792.0,30791.0,0.04016167]
[1609593577633,0.19845093,30792.0,30787.0,0.04016379]
[1609593577833,0.19845093,30792.0,30791.0,0.04016511]
[1609593578232,0.19845093,30792.0,30788.0,0.04016489]
[1609593578432,0.19845093,30792.0,30786.0,0.16237]
[1609593578433,0.19845093,30792.0,30791.0,0.04016485]
[1609593578633,0.01801935,30792.0,30789.0,0.04016338]
[1609593578933,0.01603903,30792.0,30791.0,0.0401625]
[1609593579137,0.01603903,30792.0,30787.0,0.04016181]
[1609593579333,0.01603903,30792.0,30791.0,0.18043158]
[1609593579537,0.01603903,30792.0,30791.0,0.22059219]
[1609593580536,0.01603903,30792.0,30791.0,0.21059219]
[1609593582537,0.01603903,30792.0,30791.0,0.20059219]
[1609593582738,0.2737,30800.0,30791.0,0.20059219]
[1609593583242,0.2737,30800.0,30792.0,0.04014913]
[1609593583440,0.45413158,30800.0,30799.0,0.18043158]
[1609593583844,0.45413158,30800.0,30799.0,0.2205843]
[1609593584044,0.45413158,30800.0,30799.0,0.2105843]
[1609593585645,0.2737,30800.0,30799.0,0.2105843]
[1609593587346,0.45413158,30800.0,30799.0,0.2105843]
[1609593587949,0.45413158,30800.0,30799.0,0.04015272]
[1609593588548,0.45413158,30800.0,30796.0,0.04015529]
[1609593588849,0.45413158,30800.0,30799.0,0.04015618]
[1609593589048,0.45413158,30800.0,30796.0,0.04015656]
[1609593589349,0.45413158,30800.0,30799.0,0.04015463]
[1609593589750,0.45413158,30800.0,30797.0,0.04015475]
[1609593594457,0.18043158,30800.0,30797.0,0.04015475]
[1609593595960,0.1784518,30800.0,30797.0,0.04015475]
[1609593596559,5.00058,30816.0,30797.0,0.04015475]
[1609593596860,0.14098,30816.0,30797.0,0.04015475]
[1609593597060,1.0,30832.0,30797.0,0.04015475]
[1609593597859,1.0,30832.0,30797.0,0.03973164]
[1609593598059,1.11136,30832.0,30796.0,0.04014245]
[1609593598259,1.11136,30832.0,30798.0,0.04014257]
[1609593598460,1.0,30820.0,30797.0,0.04014164]
[1609593598659,1.0,30820.0,30796.0,0.04014206]
[1609593598960,1.0,30820.0,30798.0,0.04014271]
[1609593599259,1.0,30820.0,30797.0,0.0401429]
[1609593599459,1.0,30820.0,30796.0,0.0401412]
[1609593599760,1.0,30820.0,30798.0,0.04014132]
[1609593600060,1.0,30820.0,30797.0,0.04014226]
[1609593600361,1.0,30819.0,30796.0,0.04014313]
[1609593600563,1.0,30819.0,30798.0,0.04014296]
[1609593600963,1.0,30819.0,30797.0,0.04014439]
[1609593601163,1.0,30819.0,30799.0,0.04014483]
[1609593601362,1.0,30819.0,30805.0,0.18043158]
[1609593601762,1.0,30819.0,30805.0,0.35413158]
[1609593601962,1.0,30819.0,30806.0,0.04014433]
[1609593602363,0.14355,30824.0,30806.0,0.04014433]
[1609593603365,0.14355,30824.0,30810.0,0.18043158]
[1609593603765,1.0,30831.0,30811.0,0.04014263]
[1609593604166,0.11136,30832.0,30811.0,0.04014263]
[1609593604368,1.0,30835.0,30811.0,0.04014263]
[1609593605174,1.0,30835.0,30811.0,0.11955569]
[1609593605366,1.0,30835.0,30834.0,0.18043158]
[1609593605967,1.0,30835.0,30834.0,0.22055404]
[1609593606375,0.70523994,30840.0,30834.0,0.22055404]
[1609593606568,0.70525085,30854.0,30834.0,0.22055404]
[1609593607168,0.70525085,30854.0,30835.0,0.04011754]
[1609593607369,0.18043158,30843.0,30840.0,0.18043158]
[1609593607971,0.18043158,30843.0,30841.0,0.04011729]
[1609593608169,0.18043158,30843.0,30841.0,0.17926729]
[1609593608672,0.18043158,30843.0,30842.0,0.04011667]
[1609593609572,0.17845359,30843.0,30842.0,0.04011667]
[1609593611074,0.17845359,30843.0,30831.0,0.0401178]
[1609593611474,1.0,30844.0,30836.0,0.18043158]
[1609593611876,1.0,30844.0,30837.0,0.04011605]
[1609593612075,1.0,30844.0,30837.0,0.17151605]
[1609593612475,0.11845,30851.0,30837.0,0.17151605]
[1609593612676,1.0,30850.0,30838.0,0.04011671]
[1609593613477,0.18043158,30839.0,30838.0,0.04011671]
[1609593614080,0.18043158,30839.0,30831.0,0.04012155]
[1609593614280,0.18043158,30839.0,30838.0,0.04012401]
[1609593614480,1.18043158,30839.0,30838.0,0.03970171]
[1609593614680,1.18043158,30839.0,30832.0,0.04012383]
[1609593614881,1.18043158,30839.0,30838.0,0.04012438]
[1609593615081,1.18043158,30839.0,30833.0,0.04012492]
[1609593615281,1.18043158,30839.0,30838.0,0.04012439]
[1609593615681,2.18043158,30839.0,30834.0,0.04012523]
[1609593615881,4.3878,30835.0,30824.0,0.1195122]
[1609593616081,1.0,30834.0,30824.0,0.07938587]
[1609593616483,1.0,30834.0,30825.0,0.04013206]
[1609593616681,0.12574,30835.0,30824.0,0.11951917]
[1609593616882,0.12574,30835.0,30826.0,0.04013666]
[1609593617283,0.12574,30835.0,30825.0,0.04013756]
[1609593617482,0.12574,30835.0,30827.0,0.04013618]
[1609593617683,3.9478,30834.0,30826.0,0.04013628]
[1609593618083,3.9478,30834.0,30828.0,0.04013788]
[1609593618284,3.9478,30834.0,30824.0,0.11952489]
[1609593618484,3.9478,30834.0,30829.0,0.04013887]
[1609593618884,3.9478,30834.0,30825.0,0.04013987]
[1609593619286,3.9478,30834.0,30824.0,0.04014086]
[1609593619484,0.18043158,30825.0,30824.0,0.04014086]
[1609593619684,1.18043158,30825.0,30823.0,1.79902296]
[1609593619885,2.04290158,30825.0,30824.0,0.04014218]
[1609593620085,2.04290158,30825.0,30823.0,1.53172296]
[1609593620287,1.31160158,30825.0,30823.0,1.53172296]
[1609593621086,4.1424,30821.0,30819.0,1.9778157]
[1609593621286,1.0,30820.0,30819.0,1.9778157]
[1609593621487,1.18043158,30820.0,30803.0,0.1771]
[1609593621686,1.18043158,30820.0,30819.0,0.04014907]
[1609593621888,1.18043158,30820.0,30803.0,0.1771]
[1609593622086,1.18043158,30820.0,30806.0,0.04015076]
[1609593622286,1.18043158,30820.0,30804.0,0.04015178]
[1609593622486,1.18043158,30820.0,30807.0,0.04015134]
[1609593622887,1.18043158,30820.0,30805.0,0.0401519]
[1609593623088,1.18043158,30820.0,30808.0,0.04015427]
[1609593623288,1.18043158,30820.0,30806.0,0.04015496]
[1609593623488,0.18043158,30807.0,30806.0,0.04015496]
[1609593623692,1.18043158,30807.0,30792.0,0.16724]
[1609593623891,1.18043158,30807.0,30793.0,0.04015557]
[1609593624590,1.18043158,30807.0,30792.0,0.16724]
[1609593624792,0.18043158,30807.0,30794.0,0.04015699]
[1609593624991,1.0,30806.0,30794.0,0.04015699]
[1609593625191,1.0,30806.0,30793.0,0.04015549]
[1609593625496,1.0,30806.0,30795.0,0.04015504]
[1609593625698,1.0,30806.0,30794.0,0.04015514]
[1609593625993,0.1119,30810.0,30796.0,0.0401547]
[1609593626193,1.0,30809.0,30792.0,0.16724]
[1609593626393,1.0,30809.0,30797.0,0.04015467]
[1609593626794,1.0,30809.0,30798.0,0.04015296]
[1609593626996,0.1119,30810.0,30798.0,0.04015296]
[1609593627497,0.18043158,30799.0,30798.0,0.22058454]
[1609593628296,0.18043158,30799.0,30798.0,0.04015296]
[1609593628496,1.18043158,30799.0,30798.0,0.04015296]
[1609593628998,1.0,30799.0,30798.0,0.04015296]
[1609593629398,2.0,30799.0,30798.0,0.04015296]
[1609593629598,2.86523158,30799.0,30798.0,0.04015296]
[1609593630498,0.86523158,30799.0,30798.0,0.04015296]
[1609593630698,1.86523158,30799.0,30798.0,0.04015296]
[1609593632001,1.18043158,30799.0,30798.0,0.04015296]
[1609593632401,3.7815,30798.0,30792.0,0.16724]
[1609593632601,1.0,30797.0,30785.0,0.25657566]
[1609593632801,1.0,30797.0,30793.0,0.04015989]
[1609593633001,1.0,30797.0,30786.0,0.04016432]
[1609593633202,1.0,30797.0,30794.0,0.04016813]
[1609593633604,0.18043158,30795.0,30787.0,0.04017027]
[1609593633802,3.975,30788.0,30775.0,2.34830949]
[1609593634002,1.0,30787.0,30775.0,2.34830949]
[1609593634403,1.0,30787.0,30785.0,0.04017671]
[1609593634606,3.7087,30786.0,30785.0,0.04017671]
[1609593634806,4.7087,30786.0,30785.0,0.00042085]
[1609593635207,4.7087,30786.0,30784.0,1.43429192]
[1609593635606,0.18043158,30785.0,30784.0,1.43429192]
[1609593635807,1.18043158,30785.0,30784.0,0.43429192]
[1609593636207,1.18043158,30785.0,30784.0,0.43471281]
[1609593636408,1.17845002,30785.0,30784.0,0.00042089]
[1609593637008,1.17845002,30785.0,30770.0,0.12101]
[1609593637208,1.17845002,30785.0,30784.0,0.00042091]
[1609593637609,1.17845002,30785.0,30771.0,0.04018283]
[1609593637809,1.17845002,30785.0,30784.0,0.00042091]
[1609593638010,1.17845002,30785.0,30772.0,0.00042091]
[1609593638411,1.17845002,30785.0,30784.0,0.00042091]
[1609593638611,1.17845002,30785.0,30773.0,0.00042091]
[1609593638811,1.17845002,30785.0,30771.0,0.03976192]
[1609593639013,1.17845002,30785.0,30784.0,0.00042093]
[1609593639512,1.17845002,30785.0,30784.0,0.00084187]
[1609593639913,1.17845002,30785.0,30771.0,0.0397652]
[1609593640314,1.17845002,30785.0,30771.0,0.04018613]
[1609593640715,5.4315,30776.0,30771.0,0.04018613]
[1609593641318,1.0,30775.0,30771.0,0.04018613]
[1609593641517,0.18043158,30772.0,30771.0,0.04018613]
[1609593641918,0.12968,30791.0,30771.0,0.04018613]
[1609593642118,1.0,30794.0,30771.0,1.04018613]
[1609593642719,0.0971,30793.0,30772.0,0.11966775]
[1609593643120,4.7229,30785.0,30772.0,0.11966775]
[1609593643321,1.0,30784.0,30772.0,0.04016977]
[1609593643521,1.0,30784.0,30773.0,0.04017875]
[1609593644023,1.0,30784.0,30772.0,0.04018585]
[1609593644424,1.0,30784.0,30774.0,0.04018692]